fUSD/lending_fUSD_20250623
["ID","MTS","AMOUNT","RATE_DAILY","PERIOD"]
[367081714,1750651861036,-492.96792513,0.0003315,7]
[367081715,1750651861047,-490.0,0.0003315,7]
[367081716,1750651861058,-205.46674997,0.0003315,7]
[367081717,1750651861073,-491.69229951,0.0003315,7]
[367081718,1750651861082,-216.64629973,0.0003315,7]
[367081719,1750651861092,-490.0,0.0003315,5]
[367081720,1750651861102,-490.0,0.0003315,7]
[367081721,1750651861113,-490.0,0.0003315,7]
[367081722,1750651861122,-1064.69,0.0003315,7]
[367081723,1750651861132,-490.0,0.0003315,7]
[367081724,1750651861142,-658.11,0.0003315,7]
[367081725,1750651861151,-490.0,0.0003315,7]
[367081726,1750651861161,-490.0,0.0003315,7]
[367081727,1750651861170,-490.0,0.0003315,7]
[367081728,1750651861180,-490.0,0.0003315,7]
[367081729,1750651861189,-220.81996294,0.0003315,7]
[367081730,1750651861199,-490.0,0.0003315,7]
[367081731,1750651861208,-626.10339737,0.0003315,7]
[367081732,1750651861218,-490.0,0.0003315,7]
[367081733,1750651861228,-231.75147289,0.0003315,7]
[367081734,1750651861237,-490.0,0.0003315,7]
[367081735,1750651861247,-490.0,0.0003315,7]
[367081736,1750651861256,-490.0,0.0003315,7]
[367081737,1750651861265,-421.20669736,0.0003315,7]
[367081738,1750651861275,-490.0,0.0003315,7]
[367081739,1750651861284,-279.31347348,0.0003315,7]
[367081740,1750651861294,-490.0,0.0003315,7]
[367081741,1750651861303,-899.86,0.0003315,7]
[367081742,1750651861312,-630.0,0.0003315,7]
[367081743,1750651861322,-218.0027816,0.0003315,7]
[367081744,1750651861331,-490.0,0.0003315,7]
[367081745,1750651861341,-490.0,0.0003315,7]
[367081746,1750651861350,-490.0,0.0003315,7]
[367081747,1750651861359,-490.0,0.0003315,7]
[367081748,1750651861368,-820.57,0.0003315,7]
[367081749,1750651861378,-490.0,0.0003315,7]
[367081750,1750651861387,-621.39,0.0003315,7]
[367081751,1750651861397,-1475.87,0.0003315,7]
[367081752,1750651861407,-953.96,0.0003315,7]
[367081753,1750651861417,-874.73,0.0003315,7]
[367081754,1750651861427,-490.0,0.0003315,7]
[367081755,1750651861437,-490.0,0.0003315,7]
[367081756,1750651861450,-490.0,0.0003315,7]
[367081757,1750651861460,-490.0,0.0003315,7]
[367081758,1750651861470,-791.2,0.0003315,7]
[367081759,1750651861480,-490.0,0.0003315,7]
[367081760,1750651861489,-490.0,0.0003315,7]
[367081761,1750651861498,-490.0,0.0003315,7]
[367081762,1750651861507,-490.0,0.0003315,7]
[367081763,1750651861517,-490.0,0.0003315,7]
[367081764,1750651861527,-490.0,0.0003315,7]
[367081765,1750651861536,-490.06,0.0003315,7]
[367081766,1750651861546,-490.0,0.0003315,7]
[367081767,1750651861555,-490.0,0.0003315,7]
[367081768,1750651861565,-490.0,0.0003315,7]
[367081769,1750651861574,-490.0,0.0003315,7]
[367081770,1750651861584,-490.0,0.0003315,7]
[367081771,1750651861593,-555.36464732,0.0003315,7]
[367081772,1750651861602,-625.0551366,0.0003315,7]
[367081773,1750651861612,-490.0,0.0003315,7]
[367081774,1750651861621,-490.0,0.0003315,7]
[367081775,1750651861631,-490.0,0.0003315,7]
[367081776,1750651861640,-490.0,0.0003315,7]
[367081777,1750651861649,-492.60599633,0.0003315,7]
[367081778,1750651861659,-214.52048834,0.0003315,7]
[367081779,1750651861668,-490.0,0.0003315,7]
[367081780,1750651861678,-350.0,0.0003315,7]
[367081781,1750651861687,-490.0,0.0003315,7]
[367081782,1750651861696,-490.0,0.0003315,7]
[367081783,1750651861705,-153.150245,0.0003315,7]
[367081784,1750651861715,-490.0,0.0003315,7]
[367081785,1750651861725,-1091.78,0.0003315,7]
[367081786,1750651861734,-490.0,0.0003315,7]
[367081787,1750651861744,-1173.88,0.0003315,7]
[367081788,1750651861753,-490.0,0.0003315,7]
[367081789,1750651861762,-490.0,0.0003315,7]
[367081790,1750651861771,-491.39148392,0.0003315,7]
[367081791,1750651861781,-490.0,0.0003315,7]
[367081792,1750651861790,-490.0,0.0003315,7]
[367081793,1750651861800,-490.0,0.0003315,7]
[367081794,1750651861810,-490.0,0.0003315,7]
[367081795,1750651861819,-885.78,0.0003315,7]
[367081796,1750651861828,-490.0,0.0003315,7]
[367081797,1750651861838,-857.75,0.0003315,7]
[367081798,1750651861847,-493.85478082,0.0003315,7]
[367081799,1750651861856,-1067.28,0.0003315,7]
[367081800,1750651861866,-1111.19,0.0003315,7]
[367081801,1750651861875,-490.0,0.0003315,7]
[367081802,1750651861884,-551.44,0.0003315,7]
[367081803,1750651861893,-909.59,0.0003315,7]
[367081804,1750651861903,-490.0,0.0003315,7]
[367081805,1750651861912,-490.0,0.0003315,7]
[367081806,1750651861922,-490.0,0.0003315,7]
[367081807,1750651861931,-490.0,0.0003315,7]
[367081808,1750651861940,-490.0,0.0003315,7]
[367081809,1750651861950,-490.0,0.0003315,7]
[367081810,1750651861959,-490.0,0.0003315,7]
[367081811,1750651861968,-490.0,0.0003315,7]
[367081812,1750651861978,-490.0,0.0003315,7]
[367081813,1750651861988,-464.39914058,0.0003315,7]
[367081814,1750651861997,-529.44,0.0003315,7]
[367081815,1750651862006,-490.0,0.0003315,7]
[367081816,1750651862016,-827.69,0.0003315,7]
[367081817,1750651862025,-490.0,0.0003315,7]
[367081818,1750651862035,-342.36921527,0.0003315,7]
[367081819,1750651862045,-490.0,0.0003315,7]
[367081820,1750651862055,-160.15541214,0.0003315,7]
[367081821,1750651862069,-490.0,0.0003315,7]
[367081822,1750651862079,-672.92,0.0003315,7]
[367081823,1750651862088,-490.0,0.0003315,7]
[367081824,1750651862097,-547.04,0.0003315,7]
[367081825,1750651862108,-490.0,0.0003315,7]
[367081826,1750651862118,-490.0,0.0003315,7]
[367081827,1750651862127,-500.0,0.0003315,7]
[367081828,1750651862137,-490.0,0.0003315,7]
[367081829,1750651862146,-490.0,0.0003315,7]
[367081830,1750651862155,-490.0,0.0003315,7]
[367081831,1750651862165,-589.91,0.0003315,7]
[367081832,1750651862174,-490.0,0.0003315,7]
[367081833,1750651862184,-490.0,0.0003315,7]
[367081834,1750651862193,-784.09,0.0003315,7]
[367081835,1750651862203,-490.0,0.0003315,7]
[367081836,1750651862213,-490.0,0.0003315,7]
[367081837,1750651862222,-490.0,0.0003315,7]
[367081838,1750651862232,-490.0,0.0003315,7]
[367081839,1750651862242,-492.72582662,0.0003315,7]
[367081840,1750651862251,-206.182171,0.0003315,7]
[367081841,1750651862261,-490.0,0.0003315,7]
[367081842,1750651862270,-952.76,0.0003315,7]
[367081843,1750651862280,-490.0,0.0003315,7]
[367081844,1750651862289,-634.47514803,0.0003315,7]
[367081845,1750651862299,-490.0,0.0003315,7]
[367081846,1750651862313,-490.0,0.0003315,7]
[367081847,1750651862324,-622.94,0.0003315,7]
[367081848,1750651862334,-151.0,0.0003315,7]
[367081849,1750651862343,-151.0,0.0003315,7]
[367081850,1750651862352,-151.0,0.0003315,7]
[367081851,1750651862362,-491.68815622,0.0003315,7]
[367081852,1750651862371,-490.0,0.0003315,7]
[367081853,1750651862384,-1759.37,0.0003315,7]
[367081854,1750651862399,-490.0,0.0003315,7]
[367081855,1750651862408,-1210.2,0.0003315,7]
[367081856,1750651862417,-499.89651226,0.0003315,7]
[367081857,1750651862428,-153.28363812,0.0003315,7]
[367081858,1750651862437,-490.0,0.0003315,7]
[367081859,1750651862447,-490.0,0.0003315,7]
[367081860,1750651862457,-247.72737305,0.0003315,7]
[367081861,1750651862466,-490.0,0.0003315,7]
[367081862,1750651862475,-2870.387257,0.0003315,7]
[367081863,1750651862485,-496.69677644,0.0003315,7]
[367081864,1750651862494,-490.0,0.0003315,7]
[367081865,1750651862504,-1573.26,0.0003315,7]
[367081866,1750651862513,-490.0,0.0003315,7]
[367081867,1750651862522,-518.58,0.0003315,7]
[367081868,1750651862532,-490.0,0.0003315,7]
[367081869,1750651862541,-356.31865341,0.0003315,7]
[367081870,1750651862552,-490.0,0.0003315,7]
[367081871,1750651862562,-490.0,0.0003315,7]
[367081872,1750651862571,-490.0,0.0003315,7]
[367081873,1750651862581,-490.0,0.0003315,7]
[367081874,1750651862591,-490.0,0.0003315,7]
[367081875,1750651862601,-490.0,0.0003315,7]
[367081876,1750651862611,-1067.54,0.0003315,7]
[367081877,1750651862620,-490.0,0.0003315,7]
[367081878,1750651862630,-490.0,0.0003315,7]
[367081879,1750651862639,-1396.319128,0.0003315,7]
[367081880,1750651862649,-151.0,0.0003315,7]
[367081881,1750651862658,-155.330049,0.0003315,7]
[367081882,1750651862667,-802.23,0.0003315,7]
[367081883,1750651862676,-490.0,0.0003315,7]
[367081884,1750651862686,-675.08,0.0003315,7]
[367081885,1750651862695,-490.0,0.0003315,7]
[367081886,1750651862704,-490.0,0.0003315,7]
[367081887,1750651862713,-490.0,0.0003315,7]
[367081888,1750651862723,-151.0,0.0003315,7]
[367081889,1750651862732,-151.0,0.0003315,7]
[367081890,1750651862742,-151.0,0.0003315,7]
[367081891,1750651862751,-151.0,0.0003315,7]
[367081892,1750651862761,-490.0,0.0003315,7]
[367081893,1750651862770,-490.0,0.0003315,7]
[367081894,1750651862779,-151.0,0.0003315,7]
[367081895,1750651862788,-490.0,0.0003315,7]
[367081896,1750651862800,-490.0,0.0003315,7]
[367081897,1750651862810,-490.0,0.0003315,7]
[367081898,1750651862820,-705.94,0.0003315,7]
[367081899,1750651862830,-6348.159924,0.0003315,7]
[367081900,1750651862840,-909.48,0.0003315,7]
[367081901,1750651862849,-490.0,0.0003315,7]
[367081902,1750651862858,-218.07255045,0.0003315,7]
[367081903,1750651862868,-490.0,0.0003315,7]
[367081904,1750651862877,-490.0,0.0003315,7]
[367081905,1750651862887,-490.0,0.0003315,7]
[367081906,1750651862896,-687.8,0.0003315,7]
[367081907,1750651862906,-934.07,0.0003315,7]
[367081908,1750651862915,-490.0,0.0003315,7]
[367081909,1750651862924,-490.0,0.0003315,7]
[367081910,1750651862934,-286.80100468,0.0003315,7]
[367081911,1750651862944,-490.0,0.0003315,7]
[367081912,1750651862953,-490.0,0.0003315,7]
[367081913,1750651862963,-954.17,0.0003315,7]
[367081914,1750651862972,-490.0,0.0003315,7]
[367081915,1750651862982,-490.0,0.0003315,7]
[367081916,1750651862993,-490.0,0.0003315,7]
[367081917,1750651863003,-490.0,0.0003315,7]
[367081918,1750651863012,-490.0,0.0003315,7]
[367081919,1750651863022,-490.0,0.0003315,7]
[367081920,1750651863032,-1653.17,0.0003315,7]
[367081921,1750651863041,-200.0,0.0003315,2]
[367081922,1750651863057,-708.58,0.0003315,7]
[367081923,1750651863069,-490.0,0.0003315,7]
[367081924,1750651863079,-490.0,0.0003315,7]
[367081925,1750651863089,-490.0,0.0003315,7]
[367081926,1750651863099,-1446.18,0.0003315,7]
[367081927,1750651863109,-490.0,0.0003315,7]
[367081928,1750651863119,-490.0,0.0003315,7]
[367081929,1750651863129,-751.75,0.0003315,7]
[367081930,1750651863140,-568.10045589,0.0003315,7]
[367081931,1750651863151,-490.0,0.0003315,7]
[367081932,1750651863161,-1861.33,0.0003315,7]
[367081933,1750651863170,-702.12,0.0003315,7]
[367081934,1750651863179,-188.97121459,0.0003315,7]
[367081935,1750651863189,-490.0,0.0003315,7]
[367081936,1750651863197,-1430.82,0.0003315,7]
[367081937,1750651863205,-490.0,0.0003315,7]
[367081938,1750651863213,-490.0,0.0003315,7]
[367081939,1750651863222,-842.79,0.0003315,7]
[367081940,1750651863230,-500.50254454,0.0003315,7]
[367081941,1750651863239,-1853.35,0.0003315,7]
[367081942,1750651863247,-490.0,0.0003315,7]
[367081943,1750651863254,-490.0,0.0003315,7]
[367081944,1750651863261,-490.0,0.0003315,7]
[367081945,1750651863269,-490.0,0.0003315,7]
[367081946,1750651863275,-1821.07,0.0003315,7]
[367081947,1750651863284,-226.57331414,0.0003315,7]
[367081948,1750651863294,-902.44,0.0003315,7]
[367081949,1750651863304,-1855.08,0.0003315,7]
[367081950,1750651863314,-490.0,0.0003315,2]
[367081951,1750651863323,-490.0,0.0003315,7]
[367081952,1750651863333,-490.0,0.0003315,7]
[367081953,1750651863342,-1488.74,0.0003315,7]
[367081954,1750651863352,-490.0,0.0003315,7]
[367081955,1750651863361,-490.0,0.0003315,7]
[367081956,1750651863371,-329.15,0.0003315,7]
[367081957,1750651863380,-490.0,0.0003315,7]
[367081958,1750651863390,-490.0,0.0003315,2]
[367081959,1750651863400,-350.40954084,0.0003315,7]
[367081960,1750651863409,-490.0,0.0003315,7]
[367081961,1750651863419,-885.56,0.0003315,7]
[367081962,1750651863428,-2472.17,0.0003315,7]
[367081963,1750651863438,-490.0,0.0003315,7]
[367081964,1750651863448,-490.0,0.0003315,7]
[367081965,1750651863457,-487.25360427,0.0003315,7]
[367081966,1750651863466,-541.36,0.0003315,7]
[367081967,1750651863475,-490.0,0.0003315,7]
[367081968,1750651863484,-905.1,0.0003315,7]
[367081969,1750651863495,-490.0,0.0003315,7]
[367081970,1750651863505,-776.6,0.0003315,7]
[367081971,1750651863515,-490.0,0.0003315,7]
[367081972,1750651863524,-689.14,0.0003315,7]
[367081973,1750651863534,-162.94734924,0.0003315,7]
[367081974,1750651863543,-888.92,0.0003315,7]
[367081975,1750651863554,-193.30272132,0.0003315,7]
[367081976,1750651863563,-490.0,0.0003315,7]
[367081977,1750651863572,-490.0,0.0003315,7]
[367081978,1750651863582,-639.4,0.0003315,7]
[367081979,1750651863591,-724.93,0.0003315,7]
[367081980,1750651863600,-1730.63,0.0003315,7]
[367081981,1750651863610,-218.6660008,0.0003315,7]
[367081982,1750651863619,-2066.58,0.0003315,7]
[367081983,1750651863629,-556.4,0.0003315,7]
[367081984,1750651863638,-490.0,0.0003315,7]
[367081985,1750651863647,-490.0,0.0003315,7]
[367081986,1750651863657,-757.27,0.0003315,7]
[367081987,1750651863667,-490.0,0.0003315,7]
[367081988,1750651863677,-1720.77,0.0003315,7]
[367081989,1750651863686,-1168.77,0.0003315,7]
[367081990,1750651863696,-1395.99,0.0003315,7]
[367081991,1750651863706,-1495.08,0.0003315,7]
[367081992,1750651863715,-490.0,0.0003315,7]
[367081993,1750651863724,-490.0,0.0003315,7]
[367081994,1750651863734,-1032.12,0.0003315,7]
[367081995,1750651863743,-1555.31,0.0003315,7]
[367081996,1750651863753,-557.55714341,0.0003315,7]
[367081997,1750651863762,-490.0,0.0003315,7]
[367081998,1750651863772,-590.43,0.0003315,7]
[367081999,1750651863781,-490.0,0.0003315,7]
[367082000,1750651863791,-449.43,0.0003315,7]
[367082001,1750651863802,-2019.71,0.0003315,7]
[367082002,1750651863811,-684.89,0.0003315,7]
[367082003,1750651863821,-490.0,0.0003315,7]
[367082004,1750651863830,-490.0,0.0003315,7]
[367082005,1750651863840,-490.0,0.0003315,7]
[367082006,1750651863850,-553.49,0.0003315,7]
[367082007,1750651863859,-652.14,0.0003315,7]
[367082008,1750651863869,-490.0,0.0003315,7]
[367082009,1750651863878,-1054.24,0.0003315,7]
[367082010,1750651863888,-490.0,0.0003315,7]
[367082011,1750651863898,-772.51,0.0003315,7]
[367082012,1750651863907,-490.0,0.0003315,7]
[367082013,1750651863917,-2635.72,0.0003315,7]
[367082014,1750651863926,-490.0,0.0003315,7]
[367082015,1750651863936,-742.07,0.0003315,7]
[367082016,1750651863945,-490.0,0.0003315,7]
[367082017,1750651863955,-976.25,0.0003315,7]
[367082018,1750651863964,-541.85,0.0003315,7]
[367082019,1750651863974,-490.0,0.0003315,7]
[367082020,1750651863983,-575.38,0.0003315,7]
[367082021,1750651863992,-490.0,0.0003315,7]
[367082022,1750651864002,-490.0,0.0003315,7]
[367082023,1750651864011,-510.23,0.0003315,7]
[367082024,1750651864021,-1555.69,0.0003315,7]
[367082025,1750651864030,-490.0,0.0003315,7]
[367082026,1750651864039,-490.0,0.0003315,7]
[367082027,1750651864050,-490.0,0.0003315,7]
[367082028,1750651864062,-1072.09,0.0003315,7]
[367082029,1750651864072,-490.0,0.0003315,7]
[367082030,1750651864082,-1153.76,0.0003315,7]
[367082031,1750651864091,-993.49,0.0003315,7]
[367082032,1750651864101,-1112.84,0.0003315,7]
[367082033,1750651864111,-490.0,0.0003315,7]
[367082034,1750651864121,-1935.06,0.0003315,7]
[367082035,1750651864130,-1374.96,0.0003315,7]
[367082036,1750651864139,-1492.03,0.0003315,7]
[367082037,1750651864149,-540.01,0.0003315,7]
[367082038,1750651864159,-490.0,0.0003315,7]
[367082039,1750651864169,-1621.55,0.0003315,7]
[367082040,1750651864178,-1594.72,0.0003315,7]
[367082041,1750651864187,-490.0,0.0003315,7]
[367082042,1750651864197,-476.874568,0.0003315,7]
[367082043,1750651864206,-653.96,0.0003315,7]
[367082044,1750651864215,-490.0,0.0003315,7]
[367082045,1750651864225,-510.42,0.0003315,7]
[367082046,1750651864234,-490.0,0.0003315,7]
[367082047,1750651864244,-490.0,0.0003315,7]
[367082048,1750651864254,-937.64,0.0003315,7]
[367082049,1750651864263,-884.34,0.0003315,7]
[367082050,1750651864272,-490.0,0.0003315,7]
[367082051,1750651864282,-490.0,0.0003315,7]
[367082052,1750651864291,-663.66,0.0003315,7]
[367082053,1750651864302,-490.0,0.0003315,7]
[367082054,1750651864312,-490.0,0.0003315,7]
[367082055,1750651864322,-490.0,0.0003315,7]
[367082056,1750651864332,-490.0,0.0003315,7]
[367082057,1750651864342,-490.0,0.0003315,7]
[367082058,1750651864351,-490.0,0.0003315,7]
[367082059,1750651864361,-558.41,0.0003315,7]
[367082060,1750651864371,-490.0,0.0003315,7]
[367082061,1750651864381,-174.4,0.0003315,7]
[367082062,1750651864391,-1305.74,0.0003315,7]
[367082063,1750651864402,-490.0,0.0003315,7]
[367082064,1750651864411,-1481.09,0.0003315,7]
[367082065,1750651864421,-490.0,0.0003315,7]
[367082066,1750651864431,-286.95174875,0.0003315,7]
[367082067,1750651864440,-1609.71,0.0003315,7]
[367082068,1750651864449,-490.0,0.0003315,7]
[367082069,1750651864459,-490.0,0.0003315,7]
[367082070,1750651864469,-490.0,0.0003315,7]
[367082071,1750651864478,-1292.86,0.0003315,7]
[367082072,1750651864488,-1403.74,0.0003315,7]
[367082073,1750651864498,-307.56041659,0.0003315,7]
[367082074,1750651864508,-1402.76,0.0003315,7]
[367082075,1750651864518,-490.0,0.0003315,7]
[367082076,1750651864527,-490.0,0.0003315,7]
[367082077,1750651864537,-490.0,0.0003315,7]
[367082078,1750651864548,-490.0,0.0003315,7]
[367082079,1750651864558,-945.86,0.0003315,7]
[367082080,1750651864568,-1938.14,0.0003315,7]
[367082081,1750651864577,-490.0,0.0003315,7]
[367082082,1750651864587,-155.272639,0.0003315,7]
[367082083,1750651864597,-3312.04,0.0003315,2]
[367082084,1750651864606,-490.0,0.0003315,7]
[367082085,1750651864616,-1700.0,0.0003315,7]
[367082086,1750651864625,-490.0,0.0003315,7]
[367082087,1750651864635,-490.0,0.0003315,7]
[367082088,1750651864645,-490.0,0.0003315,7]
[367082089,1750651864654,-803.65,0.0003315,7]
[367082090,1750651864664,-490.0,0.0003315,7]
[367082091,1750651864673,-490.0,0.0003315,7]
[367082092,1750651864683,-490.0,0.0003315,7]
[367082093,1750651864693,-490.0,0.0003315,7]
[367082094,1750651864703,-490.0,0.0003315,7]
[367082095,1750651864713,-887.18,0.0003315,7]
[367082096,1750651864722,-490.0,0.0003315,7]
[367082097,1750651864732,-490.0,0.0003315,7]
[367082098,1750651864742,-490.0,0.0003315,7]
[367082099,1750651864752,-490.0,0.0003315,7]
[367082100,1750651864762,-548.2089135,0.0003315,7]
[367082101,1750651864771,-904.24,0.0003315,7]
[367082102,1750651864781,-2151.85,0.0003315,7]
[367082103,1750651864790,-490.0,0.0003315,7]
[367082104,1750651864801,-814.28,0.0003315,7]
[367082105,1750651864811,-1680.23,0.0003315,7]
[367082106,1750651864821,-702.73,0.0003315,7]
[367082107,1750651864831,-490.0,0.0003315,7]
[367082108,1750651864841,-1732.88,0.0003315,7]
[367082109,1750651864850,-1436.48,0.0003315,7]
[367082110,1750651864860,-1070.3,0.0003315,7]
[367082111,1750651864869,-490.0,0.0003315,7]
[367082112,1750651864877,-490.0,0.0003315,7]
[367082113,1750651864887,-1394.64,0.0003315,7]
[367082114,1750651864897,-490.0,0.0003315,7]
[367082115,1750651864907,-490.0,0.0003315,7]
[367082116,1750651864916,-1030.86,0.0003315,7]
[367082117,1750651864926,-490.0,0.0003315,7]
[367082118,1750651864935,-490.0,0.0003315,7]
[367082119,1750651864944,-490.0,0.0003315,7]
[367082120,1750651864954,-490.0,0.0003315,7]
[367082121,1750651864963,-1131.44,0.0003315,7]
[367082122,1750651864973,-490.0,0.0003315,7]
[367082123,1750651864982,-1799.96,0.0003315,7]
[367082124,1750651864992,-490.0,0.0003315,7]
[367082125,1750651865001,-490.0,0.0003315,7]
[367082126,1750651865010,-490.0,0.0003315,7]
[367082127,1750651865020,-1362.29,0.0003315,7]
[367082128,1750651865029,-793.38,0.0003315,7]
[367082129,1750651865039,-1038.04,0.0003315,7]
[367082130,1750651865049,-490.0,0.0003315,7]
[367082131,1750651865059,-579.75,0.0003315,7]
[367082132,1750651865070,-490.0,0.0003315,7]
[367082133,1750651865080,-490.0,0.0003315,7]
[367082134,1750651865089,-539.42,0.0003315,7]
[367082135,1750651865099,-1073.78,0.0003315,7]
[367082136,1750651865109,-2460.83,0.0003315,7]
[367082137,1750651865118,-378.02468836,0.0003315,7]
[367082138,1750651865128,-490.0,0.0003315,7]
[367082139,1750651865137,-514.13,0.0003315,7]
[367082140,1750651865146,-490.0,0.0003315,7]
[367082141,1750651865156,-490.0,0.0003315,7]
[367082142,1750651865166,-963.05,0.0003315,7]
[367082143,1750651865176,-490.0,0.0003315,7]
[367082144,1750651865185,-490.0,0.0003315,7]
[367082145,1750651865194,-969.7,0.0003315,7]
[367082146,1750651865204,-1697.22,0.0003315,7]
[367082147,1750651865213,-490.0,0.0003315,2]
[367082148,1750651865222,-921.5,0.0003315,7]
[367082149,1750651865232,-1261.93,0.0003315,7]
[367082150,1750651865241,-1228.77,0.0003315,7]
[367082151,1750651865251,-490.0,0.0003315,7]
[367082152,1750651865260,-906.2,0.0003315,7]
[367082153,1750651865270,-490.0,0.0003315,7]
[367082154,1750651865279,-490.0,0.0003315,7]
[367082155,1750651865289,-1618.54,0.0003315,7]
[367082156,1750651865299,-490.0,0.0003315,7]
[367082157,1750651865309,-1142.19,0.0003315,7]
[367082158,1750651865318,-493.11429948,0.0003315,7]
[367082159,1750651865328,-1230.14,0.0003315,7]
[367082160,1750651865338,-490.0,0.0003315,7]
[367082161,1750651865348,-647.57,0.0003315,7]
[367082162,1750651865357,-1768.81,0.0003315,7]
[367082163,1750651865367,-490.0,0.0003315,7]
[367082164,1750651865377,-490.0,0.0003315,7]
[367082165,1750651865386,-1931.12,0.0003315,7]
[367082166,1750651865396,-490.0,0.0003315,7]
[367082167,1750651865406,-592.66,0.0003315,7]
[367082168,1750651865415,-490.0,0.0003315,7]
[367082169,1750651865425,-490.0,0.0003315,7]
[367082170,1750651865434,-490.0,0.0003315,7]
[367082171,1750651865444,-550.64,0.0003315,7]
[367082172,1750651865453,-1406.03,0.0003315,7]
[367082173,1750651865463,-1399.34,0.0003315,7]
[367082174,1750651865474,-1769.53,0.0003315,7]
[367082175,1750651865484,-490.0,0.0003315,7]
[367082176,1750651865493,-490.0,0.0003315,7]
[367082177,1750651865503,-490.0,0.0003315,7]
[367082178,1750651865513,-490.0,0.0003315,7]
[367082179,1750651865523,-3170.22,0.0003315,7]
[367082180,1750651865532,-1405.29,0.0003315,7]
[367082181,1750651865542,-490.0,0.0003315,7]
[367082182,1750651865552,-490.0,0.0003315,7]
[367082183,1750651865562,-490.0,0.0003315,7]
[367082184,1750651865572,-1050.91,0.0003315,7]
[367082185,1750651865581,-1096.11,0.0003315,7]
[367082186,1750651865591,-490.0,0.0003315,7]
[367082187,1750651865601,-621.56,0.0003315,7]
[367082188,1750651865611,-1064.72,0.0003315,7]
[367082189,1750651865620,-1199.29,0.0003315,7]
[367082190,1750651865630,-787.56,0.0003315,7]
[367082191,1750651865640,-490.0,0.0003315,7]
[367082192,1750651865649,-490.0,0.0003315,7]
[367082193,1750651865659,-433.87928981,0.0003315,7]
[367082194,1750651865669,-490.0,0.0003315,7]
[367082195,1750651865679,-490.0,0.0003315,7]
[367082196,1750651865689,-1044.99,0.0003315,7]
[367082197,1750651865699,-490.0,0.0003315,7]
[367082198,1750651865708,-356.85080439,0.0003315,7]
[367082199,1750651865719,-669.53,0.0003315,7]
[367082200,1750651865730,-490.0,0.0003315,7]
[367082201,1750651865740,-490.0,0.0003315,7]
[367082202,1750651865752,-490.0,0.0003315,7]
[367082203,1750651865764,-819.91,0.0003315,7]
[367082204,1750651865774,-496.44,0.0003315,7]
[367082205,1750651865783,-1119.02,0.0003315,7]
[367082206,1750651865793,-490.0,0.0003315,7]
[367082207,1750651865803,-1131.27,0.0003315,7]
[367082208,1750651865812,-490.0,0.0003315,7]
[367082209,1750651865822,-2219.26,0.0003315,7]
[367082210,1750651865832,-490.0,0.0003315,7]
[367082211,1750651865842,-527.81306199,0.0003315,7]
[367082212,1750651865852,-212.13646848,0.0003315,7]
[367082213,1750651865862,-819.29,0.0003315,7]